bitfinex/quotes_BTCUSD_20250512
["timestamp","ask_amount","ask_price","bid_price","bid_amount"]
[1747080250158,1.43184788,101860.0,101850.0,0.00114624]
[1747080250989,0.33788871,101860.0,101850.0,0.00114624]
[1747080251163,0.73068871,101860.0,101850.0,0.00114624]
[1747080251377,1.4177217,101860.0,101850.0,0.00114624]
[1747080251985,1.0249217,101860.0,101850.0,0.00114624]
[1747080252161,1.4186417,101860.0,101850.0,0.00114624]
[1747080252346,2.0186417,101860.0,101850.0,0.00114624]
[1747080252557,2.0345417,101860.0,101850.0,0.00114624]
[1747080252996,2.0186417,101860.0,101850.0,0.00114624]
[1747080253211,0.58203441,101860.0,101850.0,0.00114624]
[1747080253407,0.58203441,101860.0,101850.0,0.03294624]
[1747080253609,0.97603441,101860.0,101850.0,0.03294624]
[1747080253841,0.77819441,101860.0,101850.0,0.03294624]
[1747080254046,0.76314203,101860.0,101850.0,0.03294624]
[1747080254191,0.96110203,101860.0,101850.0,0.03294624]
[1747080254587,0.56698203,101860.0,101850.0,0.03294624]
[1747080254829,0.96102203,101860.0,101850.0,0.03294624]
[1747080255848,0.96086203,101860.0,101850.0,0.03294624]
[1747080256218,1.30789502,101860.0,101850.0,0.03294624]
[1747080256426,0.21885691,101860.0,101850.0,0.71025167]
[1747080256628,0.21885691,101860.0,101850.0,0.36321868]
[1747080256629,0.21901691,101860.0,101850.0,0.36321868]
[1747080256849,0.22883343,101860.0,101850.0,0.36321868]
[1747080257057,0.23865053,101860.0,101850.0,0.36321868]
[1747080257261,0.23765053,101860.0,101850.0,0.36321868]
[1747080257464,0.23765053,101860.0,101850.0,0.45907298]
[1747080257674,0.22983343,101860.0,101850.0,0.47807298]
[1747080257878,0.23965034,101860.0,101850.0,0.47807298]
[1747080258087,0.05126744,101860.0,101850.0,0.47807298]
[1747080258286,0.05126744,101860.0,101850.0,0.82510597]
[1747080258485,0.05126744,101860.0,101850.0,0.82410597]
[1747080258486,0.04126744,101860.0,101850.0,0.82410597]
[1747080258719,0.04326744,101860.0,101850.0,0.83210597]
[1747080258927,0.21998222,101860.0,101850.0,0.15480054]
[1747080259168,0.21998222,101860.0,101850.0,0.16339767]
[1747080259549,0.21998222,101860.0,101850.0,0.3794009]
[1747080259751,0.02363363,101860.0,101850.0,0.73625157]
[1747080259961,0.04326794,101860.0,101850.0,0.73625157]
[1747080260164,0.04326784,101860.0,101850.0,0.73625157]
[1747080261349,0.04326784,101860.0,101850.0,0.76597928]
[1747080261741,0.01381662,101860.0,101850.0,0.76597928]
[1747080261959,0.03345035,101860.0,101850.0,0.76597928]
[1747080262372,0.03345035,101860.0,101850.0,0.73625157]
[1747080262610,0.004,101860.0,101850.0,0.75079242]
[1747080262820,0.004,101860.0,101850.0,1.09782541]
[1747080263157,0.004,101860.0,101850.0,1.15079242]
[1747080263355,0.004,101860.0,101850.0,0.80375943]
[1747080263572,0.004,101860.0,101850.0,1.24664672]
[1747080263774,0.004,101860.0,101850.0,1.15079242]
[1747080266021,0.004,101860.0,101850.0,1.49782541]
[1747080269090,0.002,101860.0,101850.0,1.47882541]
[1747080269513,0.002,101860.0,101850.0,1.48982541]
[1747080269926,0.004,101860.0,101850.0,1.59367971]
[1747080270878,0.004,101860.0,101850.0,1.79095971]
[1747080272443,0.004,101860.0,101850.0,2.99993171]
[1747080272649,0.004,101860.0,101850.0,2.92180871]
[1747080272866,0.004,101860.0,101850.0,3.30440871]
[1747080273283,0.5015772,101900.0,101890.0,0.26472987]
[1747080273485,0.5015772,101900.0,101890.0,0.76977493]
[1747080273694,0.30530616,101900.0,101890.0,0.77958876]
[1747080273902,0.51139055,101900.0,101890.0,0.76977493]
[1747080274100,0.51139055,101900.0,101890.0,0.76977513]
[1747080274303,0.42291099,101900.0,101890.0,0.77077513]
[1747080274521,0.43591099,101900.0,101890.0,0.77092137]
[1747080274723,0.43791099,101900.0,101890.0,0.77092137]
[1747080276120,0.43791099,101900.0,101890.0,0.42388838]
[1747080276318,0.42809774,101900.0,101890.0,0.35191649]
[1747080277736,0.42809774,101900.0,101890.0,0.36173061]
[1747080277936,0.42809774,101900.0,101890.0,0.39492749]
[1747080278345,0.42809774,101900.0,101890.0,0.38511357]
[1747080278482,0.42809774,101900.0,101890.0,0.37529955]
[1747080278688,0.42809774,101900.0,101890.0,0.42759631]
[1747080278897,0.42809774,101900.0,101890.0,0.43741033]
[1747080280281,0.42809774,101900.0,101890.0,0.44722425]
[1747080281550,0.42809774,101900.0,101890.0,0.44722358]
[1747080283176,0.42809774,101900.0,101890.0,0.43740975]
[1747080284818,0.42809774,101900.0,101890.0,0.42759583]
[1747080286001,0.42809774,101900.0,101890.0,0.37529907]
[1747080288214,0.42809774,101900.0,101890.0,0.37519979]
[1747080290086,0.23182641,101900.0,101890.0,0.38501362]
[1747080290291,0.24163985,101900.0,101890.0,0.38501362]
[1747080290526,0.44772424,101900.0,101890.0,0.38501362]
[1747080290695,0.44772424,101900.0,101890.0,0.48086792]
[1747080292318,0.24163985,101900.0,101890.0,0.48086792]
[1747080292938,0.4379107,101900.0,101890.0,0.48086792]
[1747080293146,0.44772424,101900.0,101890.0,0.48086792]
[1747080294937,0.44772424,101900.0,101890.0,0.38501362]
[1747080295177,0.44765554,101900.0,101890.0,0.37519979]
[1747080296329,0.44765554,101900.0,101890.0,0.39482754]
[1747080299179,0.44765554,101900.0,101890.0,0.74186053]
[1747080299180,0.015,101900.0,101890.0,0.74186053]
[1747080299603,0.0134,101900.0,101890.0,0.74186053]
[1747080299855,0.0134,101900.0,101890.0,1.23771483]
[1747080300218,0.02943647,101910.0,101900.0,0.23430773]
[1747080300436,0.24531311,101910.0,101900.0,0.70959502]
[1747080300785,0.19744,101920.0,101910.0,0.23428558]
[1747080301022,0.01962159,101920.0,101910.0,0.7074722]
[1747080301224,0.03924356,101920.0,101910.0,0.79784651]
[1747080302195,0.23547733,101920.0,101910.0,0.79784651]
[1747080302410,0.23547733,101920.0,101910.0,0.45081352]
[1747080302618,0.23547733,101920.0,101910.0,0.36043921]
[1747080303061,0.03743329,101920.0,101910.0,0.36143921]
[1747080303274,0.04724471,101920.0,101910.0,0.36143921]
[1747080303902,0.04724471,101920.0,101910.0,0.7084722]
[1747080303903,0.05705623,101920.0,101910.0,0.7084722]
[1747080304363,0.04724471,101920.0,101910.0,0.7084722]
[1747080304571,0.04724471,101920.0,101910.0,0.79894651]
[1747080305343,0.03743329,101920.0,101910.0,0.79894651]
[1747080305551,0.04724471,101920.0,101910.0,0.79894651]
[1747080306431,0.25328856,101920.0,101910.0,0.7084722]
[1747080306969,0.25328856,101920.0,101910.0,0.36143921]
[1747080308228,0.04724471,101920.0,101910.0,0.36143921]
[1747080311565,0.25328865,101920.0,101910.0,0.36143921]
[1747080311767,0.25328865,101920.0,101910.0,0.7084722]
[1747080311942,0.04724471,101920.0,101910.0,0.36143921]
[1747080312142,0.03743329,101920.0,101910.0,0.36143921]
[1747080312357,0.04724471,101920.0,101910.0,0.36143921]
[1747080312568,0.03743329,101920.0,101910.0,0.39744359]
[1747080312782,0.01781075,101920.0,101910.0,0.74447658]
[1747080313023,0.02762169,101920.0,101910.0,0.74447658]
[1747080313615,0.008,101920.0,101910.0,1.08447658]
[1747080313816,0.00981084,101920.0,101910.0,1.08347658]
[1747080314028,0.00981084,101920.0,101910.0,1.09047658]
[1747080314563,0.4413452,101930.0,101920.0,0.22445201]
[1747080314772,0.23532076,101930.0,101920.0,0.33011725]
[1747080315004,0.44134449,101930.0,101920.0,0.33011725]
[1747080315415,0.44134449,101930.0,101920.0,0.32030631]
[1747080315851,0.3924449,101940.0,101930.0,0.234241]
[1747080315852,0.20588921,101940.0,101930.0,0.234241]
[1747080316060,0.23531721,101940.0,101930.0,0.59657399]
[1747080316267,0.43151104,101940.0,101930.0,0.33558532]
[1747080316378,0.22562212,101940.0,101930.0,0.58676401]
[1747080316597,0.42170212,101940.0,101930.0,0.58676401]
[1747080317062,0.41189291,101940.0,101930.0,0.23973102]
[1747080317291,0.41889291,101940.0,101930.0,0.24073102]
[1747080318499,0.41889291,101940.0,101930.0,0.33658532]
[1747080318707,0.01680921,101940.0,101930.0,0.43243962]
[1747080318905,0.01680921,101940.0,101930.0,0.79517261]
[1747080318906,0.43847085,101940.0,101930.0,0.79517261]
[1747080319082,0.43847085,101940.0,101930.0,0.45794979]
[1747080319528,0.43847085,101940.0,101930.0,0.43832936]
[1747080319733,0.42866193,101940.0,101930.0,0.44813982]
[1747080319950,0.42866193,101940.0,101930.0,0.45795018]
[1747080320709,0.40904332,101940.0,101930.0,0.43832936]
[1747080320894,0.40904332,101940.0,101930.0,0.23230573]
[1747080321089,0.39923383,101940.0,101930.0,0.12075143]
[1747080321288,0.39923383,101940.0,101930.0,0.10545143]
[1747080321706,0.39923383,101940.0,101930.0,0.30166451]
[1747080321920,0.20319383,101940.0,101930.0,0.31147516]
[1747080322129,0.20319383,101940.0,101930.0,0.4169411]
[1747080322329,0.20319383,101940.0,101930.0,0.21091737]
[1747080322701,0.20319383,101940.0,101930.0,0.31786451]
[1747080323301,0.20319383,101940.0,101930.0,0.57133976]
[1747080324844,0.20319383,101940.0,101930.0,0.58115022]
[1747080325709,0.20319383,101940.0,101930.0,0.59096058]
[1747080327437,0.20319383,101940.0,101930.0,0.59070748]
[1747080327640,0.20319383,101940.0,101930.0,0.68656178]
[1747080328869,0.007,101940.0,101930.0,0.70618202]
[1747080329279,0.007,101940.0,101930.0,1.10618202]
[1747080329500,0.01680892,101940.0,101930.0,1.10618202]
[1747080329694,0.01680892,101940.0,101930.0,1.03725414]
[1747080329899,0.00980892,101940.0,101930.0,1.03725414]
[1747080330113,0.01961697,101950.0,101940.0,0.26733104]
[1747080330333,0.02956885,101950.0,101940.0,0.59064994]
[1747080330532,0.23555207,101950.0,101940.0,0.59064994]
[1747080330736,0.24536079,101950.0,101940.0,0.69484827]
[1747080330938,0.02956885,101950.0,101940.0,0.69484827]
[1747080331353,0.25336079,101950.0,101940.0,0.69584827]
[1747080332192,0.02776032,101950.0,101940.0,0.69584827]
[1747080332399,0.03756885,101950.0,101940.0,0.69584827]
[1747080333451,0.02776022,101950.0,101940.0,0.92331287]
[1747080333651,0.03756875,101950.0,101940.0,0.92331287]
[1747080333803,0.02776022,101950.0,101940.0,0.69584827]
[1747080334139,0.00814393,101950.0,101940.0,1.26331287]
[1747080334350,0.00814393,101950.0,101940.0,1.47381372]
[1747080334580,0.00014393,101950.0,101940.0,1.47281372]
[1747080334788,0.00214393,101950.0,101940.0,1.70027832]
[1747080335445,0.00214393,101950.0,101940.0,1.71049386]
[1747080335586,0.00214393,101950.0,101940.0,1.71749386]
[1747080336012,0.00014393,101950.0,101940.0,1.71049386]
[1747080336349,0.00014393,101950.0,101940.0,1.74249386]
[1747080336829,0.00014393,101950.0,101940.0,1.73149386]
[1747080337041,0.00014393,101950.0,101940.0,1.74349386]
[1747080337400,0.00014393,101950.0,101940.0,2.14349386]
[1747080343242,0.00014393,101950.0,101940.0,1.45088452]
[1747080343419,0.00014393,101950.0,101940.0,1.79718919]
[1747080343626,0.00014393,101950.0,101940.0,1.49083404]
[1747080343823,0.00014393,101950.0,101940.0,1.68675404]
[1747080344061,0.00014393,101950.0,101940.0,2.04759956]
[1747080348766,0.00014393,101950.0,101940.0,2.09370345]
[1747080348922,0.00014393,101950.0,101940.0,2.18955775]
[1747080354227,0.00014393,101950.0,101940.0,2.16855775]
[1747080354624,0.00014393,101950.0,101940.0,2.17955775]
[1747080355049,0.00014393,101950.0,101940.0,2.19155775]
[1747080356745,0.00014393,101950.0,101940.0,2.20155775]
[1747080357143,0.00014393,101950.0,101940.0,2.33198775]
[1747080357368,0.00014393,101950.0,101940.0,2.32108782]
[1747080362238,0.00014393,101950.0,101940.0,2.27498393]
[1747080363877,0.00014393,101950.0,101940.0,2.68980193]
[1747080364274,0.00917851,101980.0,101970.0,0.23389939]
[1747080364492,0.00917851,101980.0,101970.0,0.55699016]
[1747080364493,0.0096677,101980.0,101970.0,0.55699016]
[1747080364696,0.0096677,101980.0,101970.0,0.6019553]
[1747080364910,0.0096677,101980.0,101970.0,0.37471883]
[1747080365128,0.01947277,101980.0,101970.0,0.95699016]
[1747080365306,0.01947267,101980.0,101970.0,0.95699016]
[1747080365759,0.01029416,101980.0,101970.0,0.96499016]
[1747080366185,0.22890607,101980.0,101970.0,0.7464348]
[1747080366399,0.24851708,101980.0,101970.0,0.32514124]
[1747080366606,0.24851708,101980.0,101970.0,0.24190006]
[1747080367018,0.24851708,101980.0,101970.0,0.27170638]
[1747080368127,0.25769866,101980.0,101970.0,0.27170638]
[1747080368541,0.25769866,101980.0,101970.0,0.26190006]
[1747080368764,0.25769866,101980.0,101970.0,0.25209364]
[1747080368978,0.4435733,101980.0,101970.0,0.03634403]
[1747080369189,0.67080977,101980.0,101970.0,0.03634403]
[1747080369409,0.4435733,101980.0,101970.0,0.03634403]
[1747080369844,0.96238407,101980.0,101970.0,0.028]
[1747080370109,1.48962054,101980.0,101970.0,0.028]
[1747080370315,1.26238407,101980.0,101970.0,0.03634403]
[1747080371389,0.7351476,101980.0,101970.0,0.03634403]
[1747080372749,1.08157582,101980.0,101970.0,0.03634403]
[1747080372962,1.08157582,101980.0,101970.0,0.028]
[1747080373173,1.38157582,101980.0,101970.0,0.028]
[1747080373374,2.02157582,101980.0,101970.0,0.028]
[1747080376441,1.6751394,101980.0,101970.0,0.028]
[1747080376648,2.02156762,101980.0,101970.0,0.028]
[1747080377282,2.0342751,101980.0,101970.0,0.028]
[1747080383214,2.03413405,101980.0,101970.0,0.028]
[1747080386520,2.38056227,101980.0,101970.0,0.028]
[1747080386729,2.09510312,101980.0,101970.0,0.028]
[1747080387134,1.7486749,101980.0,101970.0,0.028]
[1747080387282,1.7486749,101980.0,101970.0,0.02]
[1747080387447,0.2463702,101960.0,101950.0,0.00962403]
[1747080387648,1.08001272,101960.0,101950.0,0.00962403]
[1747080388071,0.7335845,101960.0,101950.0,0.00962403]
[1747080388290,0.7183845,101960.0,101950.0,0.00962403]
[1747080388484,0.7183845,101960.0,101950.0,0.03162403]
[1747080388887,0.74295788,101960.0,101950.0,0.03162403]
[1747080389085,1.0893861,101960.0,101950.0,0.03162403]
[1747080389698,1.0893861,101960.0,101950.0,0.04162403]
[1747080391773,1.4293861,101960.0,101950.0,0.03328]
[1747080393405,1.53791682,101960.0,101950.0,0.03328]
[1747080395380,1.42958225,101960.0,101950.0,0.03328]
[1747080396339,1.44405767,101960.0,101950.0,0.03328]
[1747080402827,1.70905767,101960.0,101950.0,0.03328]
[1747080403036,1.72867252,101960.0,101950.0,0.03328]
[1747080403269,1.72867252,101960.0,101950.0,0.01128]
[1747080403477,1.72867252,101960.0,101950.0,0.00128]
[1747080403720,1.72867252,101960.0,101950.0,0.02928]
[1747080404327,1.38204815,101960.0,101950.0,0.02928]
[1747080404534,1.72867252,101960.0,101950.0,0.02928]
[1747080409367,1.72867252,101960.0,101950.0,0.02928]
[1747080412261,1.38204815,101960.0,101950.0,0.02928]
[1747080412440,1.72867252,101960.0,101950.0,0.02928]
[1747080414602,1.71327252,101960.0,101950.0,0.02928]
[1747080416103,2.02867252,101960.0,101950.0,0.02928]
[1747080417262,2.13704737,101960.0,101950.0,0.02928]
[1747080419519,2.12164737,101960.0,101950.0,0.02928]
[1747080425370,2.13724737,101960.0,101950.0,0.02928]
[1747080425590,2.40687274,101960.0,101950.0,0.02928]
[1747080425798,2.17937313,101960.0,101950.0,0.02928]
[1747080426036,2.17019975,101960.0,101950.0,0.02928]
[1747080426245,2.09769936,101960.0,101950.0,0.00928]
[1747080426717,1.87019975,101960.0,101950.0,0.01628]
[1747080426935,2.47019975,101960.0,101950.0,0.01628]
[1747080427391,1.87019975,101960.0,101950.0,0.00828]
[1747080427598,2.47019975,101960.0,101950.0,0.00828]
[1747080427811,2.4246589,101960.0,101950.0,0.00828]
[1747080428023,2.4246589,101960.0,101950.0,0.00128]
[1747080428243,2.39975399,101960.0,101950.0,0.00228]
[1747080428656,2.40894328,101960.0,101950.0,0.00228]
[1747080428870,2.40894328,101960.0,101950.0,0.01858]
[1747080428871,1.79040367,101960.0,101950.0,0.01858]
[1747080429079,2.18100367,101960.0,101950.0,0.03418]
[1747080429683,2.40850328,101960.0,101950.0,0.03418]
[1747080431121,2.18100367,101960.0,101950.0,0.03418]
[1747080431573,2.40850328,101960.0,101950.0,0.03418]
[1747080435867,2.40850328,101960.0,101950.0,0.00228]
[1747080436328,2.42440328,101960.0,101950.0,0.00228]
[1747080436462,2.08294374,101960.0,101950.0,0.00228]
[1747080436663,2.11051743,101960.0,101950.0,0.00228]
[1747080436933,1.88301782,101960.0,101950.0,0.00228]
[1747080437056,1.87382853,101960.0,101950.0,0.00228]
[1747080438917,2.10132814,101960.0,101950.0,0.00228]
[1747080439320,2.11132814,101960.0,101950.0,0.00228]
[1747080439947,0.51581253,101940.0,101930.0,0.0166]
[1747080440149,0.20602354,101930.0,101920.0,0.11851063]
[1747080440355,0.52937745,101930.0,101920.0,0.11851063]
[1747080441172,0.52937745,101930.0,101920.0,0.11865168]
[1747080441752,0.52937745,101930.0,101920.0,0.14065168]
[1747080441972,0.52937745,101930.0,101920.0,0.07098508]
[1747080446625,1.16937745,101930.0,101920.0,0.03114105]
[1747080447458,1.16937745,101930.0,101920.0,0.00914105]
[1747080447656,1.18527745,101930.0,101920.0,0.00914105]
[1747080447895,1.18527745,101930.0,101920.0,0.02114105]
[1747080447896,1.16937745,101930.0,101920.0,0.02114105]
[1747080448079,1.16937745,101930.0,101920.0,0.02814105]
[1747080451012,1.16937745,101930.0,101920.0,0.04354105]
[1747080452489,1.46937745,101930.0,101920.0,0.04354105]
[1747080452720,2.15305706,101930.0,101920.0,0.02814105]
[1747080453365,2.15305706,101930.0,101920.0,0.00714105]
[1747080453615,2.15305706,101930.0,101920.0,0.01714105]
[1747080454015,2.15305706,101930.0,101920.0,0.00014105]
[1747080454243,2.15705706,101930.0,101920.0,0.00014105]
[1747080454365,2.15805706,101930.0,101920.0,0.00014105]
[1747080454818,2.15805706,101930.0,101920.0,0.00114105]
[1747080454819,2.14285706,101930.0,101920.0,0.00114105]
[1747080460175,2.14710751,101930.0,101920.0,0.00114105]
[1747080462672,2.30933751,101930.0,101920.0,0.00114105]
[1747080462931,2.14710751,101930.0,101920.0,0.00114105]
[1747080466910,2.16164836,101930.0,101920.0,0.00114105]
[1747080467139,2.17794836,101930.0,101920.0,0.00114105]
[1747080469279,2.27802836,101930.0,101920.0,0.00114105]
[1747080472829,2.33695836,101930.0,101920.0,0.00114105]
[1747080477688,2.36446959,101930.0,101920.0,0.00114105]
[1747080480095,2.36246959,101930.0,101920.0,0.00014105]
[1747080480326,2.35846959,101930.0,101920.0,0.00014105]
[1747080480542,2.36346959,101930.0,101920.0,0.00114105]
[1747080483114,2.34716959,101930.0,101920.0,0.00114105]
[1747080484182,0.85587606,101910.0,101900.0,0.0159]
[1747080484383,1.57297124,101910.0,101900.0,0.0159]
[1747080484718,1.57297124,101910.0,101900.0,0.0324]
[1747080485955,0.22001733,101910.0,101900.0,0.0324]
[1747080486216,0.60961733,101910.0,101900.0,0.04074403]
[1747080486852,0.61061733,101910.0,101900.0,0.05074403]
[1747080487052,0.22101733,101910.0,101900.0,0.05074403]
[1747080487252,0.61057733,101910.0,101900.0,0.05074403]
[1747080488524,0.83807694,101910.0,101900.0,0.05074403]
[1747080489086,0.93393124,101910.0,101900.0,0.05074403]
[1747080495515,0.92978997,101910.0,101900.0,0.05074403]
[1747080496134,0.92978997,101910.0,101900.0,0.0424]
[1747080496504,0.92978997,101910.0,101900.0,0.05074403]
[1747080496750,0.92978997,101910.0,101900.0,0.0424]
[1747080497096,0.92978997,101910.0,101900.0,0.05074403]
[1747080503164,0.92962997,101910.0,101900.0,0.05074403]
[1747080503372,1.00213036,101910.0,101900.0,0.05074403]
[1747080503600,0.92962997,101910.0,101900.0,0.05074403]
[1747080503856,0.92958997,101910.0,101900.0,0.0424]
[1747080503983,0.92958997,101910.0,101900.0,0.05074403]
[1747080504992,0.92958997,101910.0,101900.0,0.0424]
[1747080505203,0.31273036,101910.0,101900.0,0.0424]
[1747080505423,0.70209036,101910.0,101900.0,0.05074403]
[1747080505636,0.92958997,101910.0,101900.0,0.05074403]
[1747080507975,0.92958997,101910.0,101900.0,0.0424]
[1747080508424,0.92958997,101910.0,101900.0,0.05074403]
[1747080513946,0.92958997,101910.0,101900.0,0.0424]
[1747080514151,2.16958997,101910.0,101900.0,0.0265]
[1747080514342,2.16958997,101910.0,101900.0,0.01]
[1747080514546,2.16958997,101910.0,101900.0,0.0252]
[1747080515751,2.16958997,101910.0,101900.0,0.0418]
[1747080517576,2.16958997,101910.0,101900.0,0.01]
[1747080517779,2.16958997,101910.0,101900.0,0.0257]
[1747080518835,2.59378997,101910.0,101900.0,0.0257]
[1747080519251,2.83583043,101910.0,101900.0,0.01]
[1747080519454,2.86783043,101910.0,101900.0,0.01]
[1747080519944,0.5460842,101900.0,101890.0,0.0314]
[1747080520183,1.09693772,101900.0,101890.0,0.0314]
[1747080521610,1.11193772,101900.0,101890.0,0.0324]
[1747080522116,1.1268589,101900.0,101890.0,0.0324]
[1747080523487,0.89935929,101900.0,101890.0,0.0324]
[1747080527795,0.89686168,101900.0,101890.0,0.0324]
[1747080529218,1.42436129,101900.0,101890.0,0.0166]
[1747080529456,1.42436129,101900.0,101890.0,0.001]
[1747080530557,0.96936207,101900.0,101890.0,0.001]
[1747080530815,1.19686168,101900.0,101890.0,0.0164]
[1747080531044,1.42436129,101900.0,101890.0,0.0164]
[1747080531265,0.96936207,101900.0,101890.0,0.0323]
[1747080531502,1.35804207,101900.0,101890.0,0.0323]
[1747080531715,0.96218777,101900.0,101890.0,0.0323]
[1747080532158,0.57746731,101900.0,101890.0,0.05911436]
[1747080532384,0.96614731,101900.0,101890.0,0.0323]
[1747080532593,1.19364692,101900.0,101890.0,0.0323]
[1747080532832,0.96614731,101900.0,101890.0,0.0323]
[1747080533055,0.77170731,101900.0,101890.0,0.0323]
[1747080540407,1.62256083,101900.0,101890.0,0.0323]
[1747080540615,2.23796083,101900.0,101890.0,0.001]
[1747080540825,2.66216083,101900.0,101890.0,0.001]
[1747080541090,2.42022817,101900.0,101890.0,0.001]
[1747080541303,1.82688414,101900.0,101890.0,0.001]
[1747080541568,2.06438375,101900.0,101890.0,0.001]
[1747080542325,1.83488414,101900.0,101890.0,0.001]
[1747080542819,0.85593963,101880.0,101870.0,0.07876039]
[1747080543068,1.56793354,101880.0,101870.0,0.07876039]
[1747080543311,1.5722886,101880.0,101870.0,0.06236039]
[1747080543566,1.69199327,101880.0,101870.0,0.06236039]
[1747080544043,1.69299327,101880.0,101870.0,0.06736039]
[1747080544299,1.70531408,101880.0,101870.0,0.07850432]
[1747080544522,1.70531408,101880.0,101870.0,0.09420432]
[1747080544777,1.70531408,101880.0,101870.0,0.04814393]
[1747080545847,0.86229469,101880.0,101870.0,0.05379273]
[1747080546071,0.91073469,101880.0,101870.0,0.05648796]
[1747080546513,0.91073469,101880.0,101870.0,0.04814393]
[1747080546514,1.35379327,101880.0,101870.0,0.04814393]
[1747080546733,1.00658899,101880.0,101870.0,0.04814393]
[1747080546918,1.35379327,101880.0,101870.0,0.05648796]
[1747080547049,1.00658899,101880.0,101870.0,0.05648796]
[1747080549103,0.91073469,101880.0,101870.0,0.05648796]
[1747080549904,0.52229469,101880.0,101870.0,0.05648796]
[1747080550108,0.91073469,101880.0,101870.0,0.05648796]
[1747080550735,1.00658899,101880.0,101870.0,0.05648796]
[1747080551923,1.00658899,101880.0,101870.0,0.04814393]
[1747080552124,1.35379327,101880.0,101870.0,0.04814393]
[1747080552326,1.35379327,101880.0,101870.0,0.03244393]
[1747080552632,1.35379327,101880.0,101870.0,0.05718796]
[1747080552825,1.35379327,101880.0,101870.0,0.04884393]
[1747080553294,1.69379327,101880.0,101870.0,0.03244393]
[1747080553498,1.39379327,101880.0,101870.0,0.01614393]
[1747080554895,1.99379327,101880.0,101870.0,0.01614393]
[1747080557797,1.99379327,101880.0,101870.0,0.03134393]
[1747080558206,1.99379327,101880.0,101870.0,0.04734393]
[1747080560670,1.99379327,101880.0,101870.0,0.01614393]
[1747080563541,2.11823489,101880.0,101870.0,0.01614393]
[1747080564709,2.10233489,101880.0,101870.0,0.01614393]
[1747080565094,2.52665489,101880.0,101870.0,0.01614393]
[1747080568505,2.52665489,101880.0,101870.0,0.03274393]
[1747080569114,2.52665489,101880.0,101870.0,0.01614393]
[1747080570870,2.52665489,101880.0,101870.0,0.03144393]
[1747080572014,2.52665489,101880.0,101870.0,0.04674393]
[1747080574456,2.07090899,101880.0,101870.0,0.04674393]
[1747080574679,2.52665489,101880.0,101870.0,0.04674393]
[1747080576745,2.23487286,101880.0,101870.0,0.01614393]
[1747080576950,2.24487286,101880.0,101870.0,0.01614393]
[1747080577175,2.30893729,101880.0,101870.0,0.00828463]
[1747080577383,2.40123729,101880.0,101870.0,0.00014393]
[1747080577588,0.57052288,101860.0,101850.0,0.015]
[1747080577834,1.51052308,101860.0,101850.0,0.01514624]
[1747080578054,1.51478961,101860.0,101850.0,0.01514624]
[1747080579634,1.51578961,101860.0,101850.0,0.01614624]
[1747080579989,1.51578961,101860.0,101850.0,0.01514624]
[1747080580216,1.52578961,101860.0,101850.0,0.04684624]
[1747080580435,1.52778961,101860.0,101850.0,0.04684624]
[1747080580611,1.52778961,101860.0,101850.0,0.03104624]
[1747080580862,1.52778961,101860.0,101850.0,0.01514624]
[1747080582859,1.52778961,101860.0,101850.0,0.0119247]
[1747080584133,1.52778961,101860.0,101850.0,0.0281247]
[1747080585866,1.52778961,101860.0,101850.0,0.0119247]
[1747080589309,1.95218961,101860.0,101850.0,0.0119247]
[1747080591859,1.95218961,101860.0,101850.0,0.0274247]
[1747080593036,1.95218961,101860.0,101850.0,0.0436247]
[1747080601423,2.25214961,101860.0,101850.0,0.0436247]
[1747080604666,1.09350286,101860.0,101850.0,0.0436247]
[1747080604911,1.48186286,101860.0,101850.0,0.0436247]
[1747080605587,1.70973581,101860.0,101850.0,0.0436247]
[1747080609299,1.70546928,101860.0,101850.0,0.0436247]
[1747080610103,1.93334223,101860.0,101850.0,0.0436247]
[1747080610314,2.53334223,101860.0,101850.0,0.0436247]
[1747080610526,2.30546928,101860.0,101850.0,0.0436247]
[1747080611596,2.29565208,101860.0,101850.0,0.0436247]
[1747080612600,2.30546928,101860.0,101850.0,0.0436247]
[1747080613436,1.88347633,101860.0,101850.0,0.04882157]
[1747080613637,2.30538928,101860.0,101850.0,0.04882157]
[1747080613837,2.30486895,101860.0,101850.0,0.0436247]
[1747080616497,2.5327419,101860.0,101850.0,0.0436247]
[1747080616623,2.5327419,101860.0,101850.0,0.0274247]
[1747080617211,2.5327419,101860.0,101850.0,0.0426247]
[1747080619762,2.56033721,101860.0,101850.0,0.0426247]
[1747080619983,2.56033721,101860.0,101850.0,0.0274247]
[1747080620731,2.56033721,101860.0,101850.0,0.0119247]
[1747080623010,2.57487806,101860.0,101850.0,0.0119247]
[1747080623226,2.60657806,101860.0,101850.0,0.0119247]
[1747080623447,2.59087806,101860.0,101850.0,0.0119247]
[1747080625109,2.57487806,101860.0,101850.0,0.0119247]
[1747080625529,1.91055131,101860.0,101850.0,0.0443247]
[1747080625738,2.33242426,101860.0,101850.0,0.0443247]
[1747080626162,2.56029721,101860.0,101850.0,0.0443247]
[1747080632515,2.57559721,101860.0,101850.0,0.0119247]
[1747080632717,2.56029721,101860.0,101850.0,0.0119247]
[1747080633442,2.57559721,101860.0,101850.0,0.0119247]
[1747080634277,2.12015131,101860.0,101850.0,0.0119247]
[1747080634656,2.56029721,101860.0,101850.0,0.0119247]
[1747080635565,2.56029721,101860.0,101850.0,0.0270247]
[1747080635775,2.56029721,101860.0,101850.0,0.0423247]
[1747080642917,2.55509388,101860.0,101850.0,0.0423247]
[1747080644315,2.16685388,101860.0,101850.0,0.0423247]
[1747080644511,2.55469388,101860.0,101850.0,0.0423247]
[1747080644920,2.09894798,101860.0,101850.0,0.0423247]
[1747080645265,2.55469388,101860.0,101850.0,0.0423247]
[1747080647155,1.93898093,101860.0,101850.0,0.0423247]
[1747080647369,2.32682093,101860.0,101850.0,0.0423247]
[1747080647653,2.55469388,101860.0,101850.0,0.0423247]
[1747080653415,2.32682093,101860.0,101850.0,0.0423247]
[1747080654330,2.55469388,101860.0,101850.0,0.0423247]
[1747080657032,2.55461388,101860.0,101850.0,0.0423247]
[1747080658430,2.55461388,101860.0,101850.0,0.0423247]
[1747080658835,2.32674093,101860.0,101850.0,0.0423247]
[1747080661617,2.55461388,101860.0,101850.0,0.0423247]
[1747080663926,2.55461388,101860.0,101850.0,0.0119247]
[1747080664330,2.55461388,101860.0,101850.0,0.0270247]
[1747080664539,2.55461388,101860.0,101850.0,0.0425247]
[1747080666067,2.32670093,101860.0,101850.0,0.0425247]
[1747080669100,2.13290093,101860.0,101850.0,0.0425247]
[1747080669309,2.09878798,101860.0,101850.0,0.0425247]
[1747080669749,2.32666093,101860.0,101850.0,0.0425247]
[1747080669968,2.29906562,101860.0,101850.0,0.0425247]
[1747080673330,2.07119267,101860.0,101850.0,0.0425247]
[1747080673535,1.68351267,101860.0,101850.0,0.0425247]
[1747080673706,1.77103267,101860.0,101850.0,0.0425247]
[1747080675301,1.57727267,101860.0,101850.0,0.0425247]
[1747080675528,1.77099267,101860.0,101850.0,0.0425247]